[Event "*** Titled Tuesday Blitz"]
[Site "Chess.com"]
[Date "2019.01.01"]
[Round "10"]
[White "tteshan"]
[Black "tigra"]
[Result "0-1"]
[WhiteElo "2171"]
[BlackElo "2751"]
[TimeControl "180+2"]
[EndTime "15:16:08 PST"]
[Termination "tigra won by checkmate"]

1. d4 {[%clk 0:03:01.9]} 1... e5 {[%clk 0:03:01.9]} 2. dxe5 {[%clk 0:02:59.4]}
2... Qe7 {[%clk 0:03:03.8]} 3. Nf3 {[%clk 0:02:59.4]} 3... Nc6 {[%clk
0:03:05.2]} 4. Bf4 {[%clk 0:03:00.2]} 4... Qb4+ {[%clk 0:03:06]} 5. Nc3 {[%clk
0:03:01.1]} 5... Qxb2 {[%clk 0:03:06.9]} 6. Nd5 {[%clk 0:02:53.3]} 6... Bb4+
{[%clk 0:03:04.4]} 7. Bd2 {[%clk 0:02:49.8]} 7... Bxd2+ {[%clk 0:03:04.3]} 8.
Nxd2 {[%clk 0:02:44]} 8... Qxe5 {[%clk 0:03:02.2]} 9. Nc4 {[%clk 0:02:44.2]}
9... Qd4 {[%clk 0:03:03.4]} 10. Nxc7+ {[%clk 0:02:31.4]} 10... Kd8 {[%clk
0:03:00.4]} 11. Nxa8 {[%clk 0:02:32.3]} 11... Qxc4 {[%clk 0:02:54.9]} 12. e3
{[%clk 0:02:18.4]} 12... Qc3+ {[%clk 0:02:55.5]} 13. Ke2 {[%clk 0:02:19.8]}
13... Nf6 {[%clk 0:02:55.3]} 14. f3 {[%clk 0:02:09.2]} 14... Re8 {[%clk
0:02:51.5]} 15. Kf2 {[%clk 0:01:41.8]} 15... Qxe3+ {[%clk 0:02:51.3]} 16. Kg3
{[%clk 0:01:42.9]} 16... Ne4+ {[%clk 0:02:53.2]} 17. Kh4 {[%clk 0:01:40.5]}
17... Qg5+ {[%clk 0:02:52.9]} 18. Kh3 {[%clk 0:01:39.5]} 18... Nf2# {[%clk
0:02:54.8]} 0-1

[Event "*** Titled Tuesday Blitz"]
[Site "Chess.com"]
[Date "2019.01.01"]
[Round "10"]
[White "Parhamov"]
[Black "Matibar"]
[Result "1-0"]
[WhiteElo "2896"]
[BlackElo "2789"]
[TimeControl "180+2"]
[EndTime "15:16:48 PST"]
[Termination "Parhamov won by resignation"]

1. e4 {[%clk 0:03:01.9]} 1... e6 {[%clk 0:02:57.1]} 2. d4 {[%clk 0:03:00.5]}
2... d5 {[%clk 0:02:58.1]} 3. Nc3 {[%clk 0:03:00.9]} 3... Nf6 {[%clk 0:02:59.7]}
4. e5 {[%clk 0:03:01.5]} 4... Nfd7 {[%clk 0:03:01.2]} 5. f4 {[%clk 0:03:02.6]}
5... c5 {[%clk 0:03:02.8]} 6. Nf3 {[%clk 0:03:04.2]} 6... Nc6 {[%clk 0:03:04.4]}
7. Be3 {[%clk 0:03:05.8]} 7... cxd4 {[%clk 0:03:05.9]} 8. Nxd4 {[%clk
0:03:07.3]} 8... Bc5 {[%clk 0:03:07.4]} 9. Qd2 {[%clk 0:03:08.8]} 9... O-O
{[%clk 0:02:56.1]} 10. O-O-O {[%clk 0:03:08.1]} 10... a6 {[%clk 0:02:57.4]} 11.
h4 {[%clk 0:03:04.3]} 11... Nxd4 {[%clk 0:02:30.6]} 12. Bxd4 {[%clk 0:03:05.2]}
12... b5 {[%clk 0:02:32.5]} 13. h5 {[%clk 0:03:05]} 13... Bb7 {[%clk 0:02:28.3]}
14. g4 {[%clk 0:02:56.9]} 14... Rc8 {[%clk 0:02:29]} 15. Ne2 {[%clk 0:02:53.5]}
15... f6 {[%clk 0:02:22.4]} 16. exf6 {[%clk 0:02:38.3]} 16... Nxf6 {[%clk
0:02:22.6]} 17. Bg2 {[%clk 0:02:38.1]} 17... Nxg4 {[%clk 0:02:22.7]} 18. Bh3
{[%clk 0:02:37.3]} 18... Nf2 {[%clk 0:01:48.2]} 19. Bxe6+ {[%clk 0:02:36.3]}
19... Kh8 {[%clk 0:01:49]} 20. Bxc8 {[%clk 0:02:23.5]} 20... Qxc8 {[%clk
0:01:43.2]} 21. h6 {[%clk 0:02:24.7]} 1-0

[Event "*** Titled Tuesday Blitz"]
[Site "Chess.com"]
[Date "2019.01.01"]
[Round "10"]
[White "julinha97"]
[Black "sandager"]
[Result "0-1"]
[WhiteElo "2095"]
[BlackElo "2016"]
[TimeControl "180+2"]
[EndTime "15:16:52 PST"]
[Termination "sandager won by resignation"]

1. e4 {[%clk 0:03:01.9]} 1... e5 {[%clk 0:03:00.4]} 2. Nf3 {[%clk 0:03:02.6]}
2... Nc6 {[%clk 0:03:01.1]} 3. Bb5 {[%clk 0:03:03.6]} 3... a6 {[%clk 0:03:01.8]}
4. Ba4 {[%clk 0:03:03.5]} 4... Nf6 {[%clk 0:03:03]} 5. O-O {[%clk 0:03:03.6]}
5... Be7 {[%clk 0:03:04.4]} 6. c3 {[%clk 0:03:02.8]} 6... b5 {[%clk 0:03:03.7]}
7. Bc2 {[%clk 0:03:02.7]} 7... O-O {[%clk 0:03:04.7]} 8. Re1 {[%clk 0:03:03]}
8... d6 {[%clk 0:03:05]} 9. h3 {[%clk 0:03:02.4]} 9... Re8 {[%clk 0:03:05.4]}
10. d4 {[%clk 0:03:02.8]} 10... Bf8 {[%clk 0:03:03.1]} 11. Nbd2 {[%clk
0:02:59.3]} 11... Bb7 {[%clk 0:03:02.5]} 12. d5 {[%clk 0:02:48.4]} 12... Ne7
{[%clk 0:03:01.9]} 13. Nf1 {[%clk 0:02:48]} 13... c6 {[%clk 0:03:03]} 14. dxc6
{[%clk 0:02:48.5]} 14... Bxc6 {[%clk 0:03:03.6]} 15. Ng3 {[%clk 0:02:46]} 15...
Ng6 {[%clk 0:03:01.4]} 16. Bg5 {[%clk 0:02:08.4]} 16... h6 {[%clk 0:02:58.8]}
17. Be3 {[%clk 0:02:09.2]} 17... Qc7 {[%clk 0:02:58.9]} 18. Nf5 {[%clk
0:02:06.8]} 18... Rad8 {[%clk 0:02:57.8]} 19. N3h4 {[%clk 0:02:04.5]} 19... Qb7
{[%clk 0:02:50.2]} 20. f3 {[%clk 0:02:03.8]} 20... d5 {[%clk 0:02:40.3]} 21.
exd5 {[%clk 0:02:01.8]} 21... Nxd5 {[%clk 0:02:39.8]} 22. Nxg6 {[%clk
0:01:46.4]} 22... fxg6 {[%clk 0:02:38.7]} 23. Qe2 {[%clk 0:01:46.7]} 23... gxf5
{[%clk 0:02:33.4]} 0-1

[Event "*** Titled Tuesday Blitz"]
[Site "Chess.com"]
[Date "2019.01.01"]
[Round "10"]
[White "nurmiTV"]
[Black "MissingLife"]
[Result "1-0"]
[WhiteElo "2606"]
[BlackElo "2413"]
[TimeControl "180+2"]
[EndTime "15:17:00 PST"]
[Termination "nurmiTV won by resignation"]

1. c4 {[%clk 0:03:01.9]} 1... Nf6 {[%clk 0:02:59.2]} 2. g3 {[%clk 0:03:03.3]}
2... c5 {[%clk 0:03:00.5]} 3. Bg2 {[%clk 0:03:04.6]} 3... d5 {[%clk 0:03:02.2]}
4. cxd5 {[%clk 0:03:04.4]} 4... Nxd5 {[%clk 0:03:04.1]} 5. Nc3 {[%clk
0:03:04.7]} 5... Nc7 {[%clk 0:03:05.2]} 6. Qa4+ {[%clk 0:03:04.7]} 6... Bd7
{[%clk 0:02:55]} 7. Qb3 {[%clk 0:03:06]} 7... Bc6 {[%clk 0:02:51.5]} 8. Nf3
{[%clk 0:03:06.3]} 8... g6 {[%clk 0:02:48.4]} 9. Ne5 {[%clk 0:03:03.8]} 9... Qd6
{[%clk 0:02:36]} 10. Qxf7+ {[%clk 0:03:02.4]} 10... Kd8 {[%clk 0:02:36]} 11. Qf4
{[%clk 0:02:42.7]} 11... Ke8 {[%clk 0:02:18]} 12. Qf7+ {[%clk 0:02:27.6]} 12...
Kd8 {[%clk 0:02:18.2]} 13. Nxc6+ {[%clk 0:02:28.5]} 13... Nxc6 {[%clk
0:02:17.8]} 14. d3 {[%clk 0:02:24.2]} 14... Ne5 {[%clk 0:02:02.6]} 15. Qb3
{[%clk 0:02:23.5]} 15... Rb8 {[%clk 0:01:55.8]} 16. O-O {[%clk 0:02:22.6]} 16...
Bg7 {[%clk 0:01:56.7]} 17. Ne4 {[%clk 0:02:21.8]} 17... Qb6 {[%clk 0:01:55.7]}
18. Bf4 {[%clk 0:02:18.1]} 18... Ne6 {[%clk 0:01:48]} 19. Qd5+ {[%clk
0:02:07.6]} 1-0

[Event "*** Titled Tuesday Blitz"]
[Site "Chess.com"]
[Date "2019.01.01"]
[Round "10"]
[White "JMatias"]
[Black "MikePerelshteyn"]
[Result "0-1"]
[WhiteElo "2378"]
[BlackElo "2560"]
[TimeControl "180+2"]
[EndTime "15:17:08 PST"]
[Termination "MikePerelshteyn won by resignation"]

1. d4 {[%clk 0:03:01.9]} 1... Nf6 {[%clk 0:03:00]} 2. e3 {[%clk 0:03:02.1]} 2...
g6 {[%clk 0:03:00.7]} 3. Nf3 {[%clk 0:03:00.3]} 3... Bg7 {[%clk 0:03:01.8]} 4.
c4 {[%clk 0:03:00.2]} 4... O-O {[%clk 0:03:02.8]} 5. Be2 {[%clk 0:02:59]} 5...
d6 {[%clk 0:03:00.1]} 6. Nc3 {[%clk 0:02:56.1]} 6... Nc6 {[%clk 0:03:01.1]} 7.
d5 {[%clk 0:02:55.5]} 7... Nb4 {[%clk 0:02:56.7]} 8. a3 {[%clk 0:02:50.9]} 8...
Na6 {[%clk 0:02:57.7]} 9. e4 {[%clk 0:02:51.6]} 9... c5 {[%clk 0:02:58.7]} 10.
Rb1 {[%clk 0:02:50.1]} 10... e6 {[%clk 0:02:57.2]} 11. O-O {[%clk 0:02:48.3]}
11... exd5 {[%clk 0:02:57.9]} 12. exd5 {[%clk 0:02:38]} 12... Bf5 {[%clk
0:02:55.9]} 13. Bd3 {[%clk 0:02:38.5]} 13... Qd7 {[%clk 0:02:53.5]} 14. h3
{[%clk 0:02:28.3]} 14... Rfe8 {[%clk 0:02:53.1]} 15. Bf4 {[%clk 0:02:28.4]}
15... Bxd3 {[%clk 0:02:49.4]} 16. Qxd3 {[%clk 0:02:28.8]} 16... Nc7 {[%clk
0:02:49.6]} 17. b4 {[%clk 0:02:27.9]} 17... Na6 {[%clk 0:02:47.3]} 18. Nb5
{[%clk 0:02:21.8]} 18... Ne4 {[%clk 0:02:45.8]} 19. Rfe1 {[%clk 0:02:19.7]}
19... f5 {[%clk 0:02:46]} 20. Ng5 {[%clk 0:02:17.5]} 20... cxb4 {[%clk
0:02:36.6]} 21. axb4 {[%clk 0:02:12.4]} 21... Nxg5 {[%clk 0:02:26.9]} 22. Bxg5
{[%clk 0:02:14.3]} 22... Nxb4 {[%clk 0:02:21.1]} 23. Rxe8+ {[%clk 0:02:12.5]}
23... Qxe8 {[%clk 0:02:21.6]} 24. Nc7 {[%clk 0:02:05.5]} 24... Nxd3 {[%clk
0:02:21.5]} 25. Nxe8 {[%clk 0:02:05]} 25... Rxe8 {[%clk 0:02:21.1]} 26. Rxb7
{[%clk 0:02:05.9]} 26... Ra8 {[%clk 0:02:18.1]} 27. Be3 {[%clk 0:01:57.3]} 27...
a5 {[%clk 0:02:17.4]} 0-1

[Event "*** Titled Tuesday Blitz"]
[Site "Chess.com"]
[Date "2019.01.01"]
[Round "10"]
[White "benhal"]
[Black "Justinz"]
[Result "1-0"]
[WhiteElo "2214"]
[BlackElo "2355"]
[TimeControl "180+2"]
[EndTime "15:17:30 PST"]
[Termination "benhal won by resignation"]

1. e4 {[%clk 0:03:01.9]} 1... c5 {[%clk 0:02:59.5]} 2. Nf3 {[%clk 0:02:51.3]}
2... d6 {[%clk 0:02:57.8]} 3. d4 {[%clk 0:02:51.4]} 3... cxd4 {[%clk 0:02:58.8]}
4. Nxd4 {[%clk 0:02:53.3]} 4... Nf6 {[%clk 0:03:00.2]} 5. Nc3 {[%clk 0:02:54.1]}
5... a6 {[%clk 0:03:01.4]} 6. Be3 {[%clk 0:02:54.9]} 6... e5 {[%clk 0:02:59.9]}
7. Nb3 {[%clk 0:02:54.7]} 7... Be6 {[%clk 0:02:59.9]} 8. f3 {[%clk 0:02:55.5]}
8... Be7 {[%clk 0:03:00.2]} 9. Qd2 {[%clk 0:02:52.7]} 9... h5 {[%clk 0:02:58.8]}
10. O-O-O {[%clk 0:02:52.2]} 10... Nbd7 {[%clk 0:02:59.7]} 11. Kb1 {[%clk
0:02:52.3]} 11... Rc8 {[%clk 0:02:56.1]} 12. Nd5 {[%clk 0:02:52.1]} 12... Nxd5
{[%clk 0:02:52.7]} 13. exd5 {[%clk 0:02:54]} 13... Bf5 {[%clk 0:02:54.2]} 14.
Bd3 {[%clk 0:02:53.4]} 14... Bxd3 {[%clk 0:02:53.3]} 15. Qxd3 {[%clk 0:02:55.3]}
15... b5 {[%clk 0:02:53.7]} 16. g4 {[%clk 0:02:55.5]} 16... hxg4 {[%clk
0:02:52.4]} 17. fxg4 {[%clk 0:02:55.6]} 17... Bg5 {[%clk 0:02:51.7]} 18. h4
{[%clk 0:02:43.6]} 18... Bxe3 {[%clk 0:02:51.1]} 19. Qxe3 {[%clk 0:02:45.5]}
19... Rxh4 {[%clk 0:02:51.9]} 20. Qf3 {[%clk 0:02:37.4]} 20... Rxh1 {[%clk
0:02:38.2]} 21. Rxh1 {[%clk 0:02:37]} 21... Qc7 {[%clk 0:02:37.5]} 22. c3 {[%clk
0:02:31.7]} 22... a5 {[%clk 0:02:32.6]} 23. Rh7 {[%clk 0:02:26.4]} 23... a4
{[%clk 0:02:24.6]} 24. Rxg7 {[%clk 0:02:26.3]} 24... Nf8 {[%clk 0:02:21.9]} 25.
Nd2 {[%clk 0:02:25.2]} 25... b4 {[%clk 0:02:18.4]} 26. Ne4 {[%clk 0:02:20.4]}
26... bxc3 {[%clk 0:02:10.4]} 27. Rxf7 {[%clk 0:02:19.1]} 1-0

[Event "*** Titled Tuesday Blitz"]
[Site "Chess.com"]
[Date "2019.01.01"]
[Round "10"]
[White "gonzaga23"]
[Black "Anahita_Gholami"]
[Result "1-0"]
[WhiteElo "2480"]
[BlackElo "2686"]
[TimeControl "180+2"]
[EndTime "15:17:47 PST"]
[Termination "gonzaga23 won on time"]

1. e4 {[%clk 0:03:01.9]} 1... e5 {[%clk 0:02:59.9]} 2. Nf3 {[%clk 0:03:03.2]}
2... Nc6 {[%clk 0:03:01]} 3. Bc4 {[%clk 0:03:04.6]} 3... Bc5 {[%clk 0:03:01.2]}
4. c3 {[%clk 0:03:05.6]} 4... Nf6 {[%clk 0:03:02.3]} 5. d4 {[%clk 0:03:06.7]}
5... exd4 {[%clk 0:03:04.2]} 6. cxd4 {[%clk 0:03:08.6]} 6... Bb4+ {[%clk
0:03:05.3]} 7. Bd2 {[%clk 0:03:10.2]} 7... Bxd2+ {[%clk 0:03:05.1]} 8. Nbxd2
{[%clk 0:03:12.1]} 8... d5 {[%clk 0:03:06.1]} 9. exd5 {[%clk 0:03:14]} 9... Nxd5
{[%clk 0:03:08]} 10. Qb3 {[%clk 0:03:15.9]} 10... Be6 {[%clk 0:03:09.2]} 11.
Qxb7 {[%clk 0:03:11.8]} 11... Ndb4 {[%clk 0:03:10.3]} 12. Qb5 {[%clk 0:02:27.4]}
1-0

[Event "*** Titled Tuesday Blitz"]
[Site "Chess.com"]
[Date "2019.01.01"]
[Round "10"]
[White "SanchezKelvin"]
[Black "farzadbfd"]
[Result "0-1"]
[WhiteElo "2527"]
[BlackElo "2494"]
[TimeControl "180+2"]
[EndTime "15:18:57 PST"]
[Termination "farzadbfd won on time"]

1. e4 {[%clk 0:02:35.8]} 1... e5 {[%clk 0:03:01]} 2. Nf3 {[%clk 0:02:36.3]} 2...
Nc6 {[%clk 0:03:02.4]} 3. d4 {[%clk 0:02:36.3]} 3... exd4 {[%clk 0:03:03.3]} 4.
Nxd4 {[%clk 0:02:38]} 4... Bc5 {[%clk 0:03:04.7]} 5. Nb3 {[%clk 0:02:39.1]} 5...
Bb4+ {[%clk 0:03:04.8]} 6. Bd2 {[%clk 0:02:39.8]} 6... Bxd2+ {[%clk 0:03:05]} 7.
Qxd2 {[%clk 0:02:41]} 7... d6 {[%clk 0:03:04.5]} 8. Nc3 {[%clk 0:02:42.1]} 8...
Be6 {[%clk 0:03:05.4]} 9. Bb5 {[%clk 0:02:42.6]} 9... Nf6 {[%clk 0:03:06.4]} 10.
O-O-O {[%clk 0:02:42.4]} 10... O-O {[%clk 0:03:00.6]} 11. f4 {[%clk 0:02:41]}
11... Re8 {[%clk 0:02:56.5]} 12. Nd4 {[%clk 0:02:40.6]} 12... Bd7 {[%clk
0:02:56.1]} 13. Nxc6 {[%clk 0:02:18.5]} 13... Bxc6 {[%clk 0:02:54]} 14. Bxc6
{[%clk 0:02:19]} 14... bxc6 {[%clk 0:02:55.9]} 15. Qd4 {[%clk 0:02:16.5]} 15...
c5 {[%clk 0:02:54.8]} 16. Qc4 {[%clk 0:02:12.3]} 16... Rb8 {[%clk 0:02:54.7]}
17. a3 {[%clk 0:02:11.5]} 17... Qc8 {[%clk 0:02:50.7]} 18. h3 {[%clk 0:02:11.9]}
18... Qb7 {[%clk 0:02:51.1]} 19. b3 {[%clk 0:02:07.5]} 19... Nxe4 {[%clk
0:02:50.8]} 20. Nxe4 {[%clk 0:02:04.6]} 20... Rxe4 {[%clk 0:02:47.9]} 21. Qf1
{[%clk 0:02:00.9]} 21... c4 {[%clk 0:02:45.1]} 22. bxc4 {[%clk 0:01:50.7]} 22...
Qb2+ {[%clk 0:02:29.6]} 23. Kd2 {[%clk 0:01:51.6]} 23... Rbe8 {[%clk 0:02:11.4]}
0-1

[Event "*** Titled Tuesday Blitz"]
[Site "Chess.com"]
[Date "2019.01.01"]
[Round "10"]
[White "tgpgoat"]
[Black "jk13"]
[Result "0-1"]
[WhiteElo "1994"]
[BlackElo "2675"]
[TimeControl "180+2"]
[EndTime "15:18:58 PST"]
[Termination "jk13 won by resignation"]

1. d4 {[%clk 0:02:54.7]} 1... e6 {[%clk 0:03:00.9]} 2. Nf3 {[%clk 0:02:54]} 2...
Nf6 {[%clk 0:03:02.5]} 3. c4 {[%clk 0:02:54.1]} 3... Bb4+ {[%clk 0:03:03.7]} 4.
Bd2 {[%clk 0:02:53.7]} 4... Bxd2+ {[%clk 0:03:04.4]} 5. Nbxd2 {[%clk 0:02:54.7]}
5... O-O {[%clk 0:03:06.3]} 6. e4 {[%clk 0:02:55.5]} 6... d6 {[%clk 0:03:08.2]}
7. Bd3 {[%clk 0:02:56.1]} 7... e5 {[%clk 0:03:09.9]} 8. d5 {[%clk 0:02:53.9]}
8... a5 {[%clk 0:03:09.3]} 9. b3 {[%clk 0:02:53.1]} 9... Na6 {[%clk 0:03:10.9]}
10. a3 {[%clk 0:02:53]} 10... Nc5 {[%clk 0:03:12.2]} 11. Bc2 {[%clk 0:02:52.9]}
11... Bg4 {[%clk 0:03:09.4]} 12. h3 {[%clk 0:02:49.4]} 12... Bxf3 {[%clk
0:03:09.4]} 13. Qxf3 {[%clk 0:02:50.6]} 13... c6 {[%clk 0:03:09.7]} 14. O-O
{[%clk 0:02:50.3]} 14... Qb6 {[%clk 0:03:08.6]} 15. Rab1 {[%clk 0:02:45.9]}
15... Ncd7 {[%clk 0:03:07.1]} 16. b4 {[%clk 0:02:44.9]} 16... axb4 {[%clk
0:03:08.2]} 17. axb4 {[%clk 0:02:42.7]} 17... Ra2 {[%clk 0:03:08.8]} 18. Qb3
{[%clk 0:02:43.3]} 18... Rfa8 {[%clk 0:03:09.1]} 19. Nf3 {[%clk 0:02:38.7]}
19... R8a3 {[%clk 0:03:09.2]} 20. c5 {[%clk 0:02:37]} 20... Qb5 {[%clk
0:02:56.8]} 21. Bd3 {[%clk 0:02:20.8]} 21... Qxd3 {[%clk 0:02:45.8]} 22. Qxd3
{[%clk 0:02:15.9]} 22... Rxd3 {[%clk 0:02:46.9]} 23. b5 {[%clk 0:02:14.7]} 23...
Ra8 {[%clk 0:02:09.1]} 24. bxc6 {[%clk 0:02:13]} 24... bxc6 {[%clk 0:02:08.5]}
25. dxc6 {[%clk 0:02:13.7]} 25... Nxc5 {[%clk 0:01:23.5]} 26. c7 {[%clk
0:02:12.4]} 26... Ncd7 {[%clk 0:01:17.1]} 27. Rfc1 {[%clk 0:02:12.3]} 27... Rc8
{[%clk 0:01:16.1]} 28. Rb7 {[%clk 0:01:46.6]} 28... Kf8 {[%clk 0:01:05.4]} 29.
Ne1 {[%clk 0:01:39.1]} 29... Rd4 {[%clk 0:01:02.5]} 30. Nc2 {[%clk 0:01:39]}
30... Rc4 {[%clk 0:01:03.4]} 0-1

[Event "*** Titled Tuesday Blitz"]
[Site "Chess.com"]
[Date "2019.01.01"]
[Round "10"]
[White "Karina_Oparina"]
[Black "Atanejhad"]
[Result "1/2-1/2"]
[WhiteElo "2054"]
[BlackElo "2242"]
[TimeControl "180+2"]
[EndTime "15:19:24 PST"]
[Termination "Game drawn by repetition"]

1. Nf3 {[%clk 0:02:57.2]} 1... Nf6 {[%clk 0:02:50.9]} 2. g3 {[%clk 0:02:57.5]}
2... b6 {[%clk 0:02:47.9]} 3. Bg2 {[%clk 0:02:56.8]} 3... Bb7 {[%clk 0:02:49.4]}
4. O-O {[%clk 0:02:56.6]} 4... g6 {[%clk 0:02:50.6]} 5. c4 {[%clk 0:02:57.3]}
5... c5 {[%clk 0:02:51]} 6. Nc3 {[%clk 0:02:56.9]} 6... Bg7 {[%clk 0:02:51.6]}
7. d4 {[%clk 0:02:57.9]} 7... cxd4 {[%clk 0:02:51.3]} 8. Nxd4 {[%clk 0:02:57.5]}
8... Bxg2 {[%clk 0:02:51.1]} 9. Kxg2 {[%clk 0:02:57]} 9... O-O {[%clk
0:02:52.5]} 10. e4 {[%clk 0:02:50.6]} 10... Nc6 {[%clk 0:02:52.3]} 11. Be3
{[%clk 0:02:49.6]} 11... Rc8 {[%clk 0:02:50.9]} 12. b3 {[%clk 0:02:47.7]} 12...
Qc7 {[%clk 0:02:45.6]} 13. Rc1 {[%clk 0:02:45.5]} 13... Qb7 {[%clk 0:02:46.1]}
14. Nd5 {[%clk 0:02:45.1]} 14... e6 {[%clk 0:02:38]} 15. Nxc6 {[%clk 0:02:43.4]}
15... dxc6 {[%clk 0:02:34]} 16. Nxf6+ {[%clk 0:02:43.4]} 16... Bxf6 {[%clk
0:02:35.9]} 17. Qf3 {[%clk 0:02:41]} 17... Bg7 {[%clk 0:02:34.9]} 18. Rfd1
{[%clk 0:02:40.3]} 18... c5 {[%clk 0:02:33.7]} 19. Rd3 {[%clk 0:02:38.1]} 19...
Rfd8 {[%clk 0:02:33.8]} 20. Rcd1 {[%clk 0:02:37.8]} 20... Qe7 {[%clk 0:02:32.3]}
21. Bf4 {[%clk 0:02:33.6]} 21... Rxd3 {[%clk 0:02:22]} 22. Rxd3 {[%clk
0:02:32.5]} 22... Rd8 {[%clk 0:02:21]} 23. Qd1 {[%clk 0:02:29.1]} 23... Rxd3
{[%clk 0:02:20.3]} 24. Qxd3 {[%clk 0:02:29.5]} 24... Bd4 {[%clk 0:02:21.6]} 25.
Be3 {[%clk 0:02:28.8]} 25... e5 {[%clk 0:02:22.8]} 26. Bxd4 {[%clk 0:02:29.2]}
26... cxd4 {[%clk 0:02:21.9]} 27. f4 {[%clk 0:02:24.3]} 27... f6 {[%clk
0:02:19.9]} 28. fxe5 {[%clk 0:02:22.5]} 28... fxe5 {[%clk 0:02:21.8]} 29. Kf2
{[%clk 0:02:19]} 29... Qa3 {[%clk 0:02:22.9]} 30. Qc2 {[%clk 0:02:19.1]} 30...
Kg7 {[%clk 0:02:16.1]} 31. Ke2 {[%clk 0:02:18.5]} 31... g5 {[%clk 0:02:14.8]}
32. Kd3 {[%clk 0:02:19.1]} 32... Qf8 {[%clk 0:02:10.7]} 33. Qe2 {[%clk
0:02:17.6]} 33... Kg6 {[%clk 0:02:10]} 34. h3 {[%clk 0:02:06.7]} 34... h5 {[%clk
0:02:10.3]} 35. Kc2 {[%clk 0:02:05]} 35... Qb4 {[%clk 0:02:08.2]} 36. Qf2 {[%clk
0:02:03.8]} 36... Qc3+ {[%clk 0:02:08]} 37. Kb1 {[%clk 0:02:02.8]} 37... Qd3+
{[%clk 0:02:08.5]} 38. Qc2 {[%clk 0:02:00.7]} 38... Qf1+ {[%clk 0:01:54.2]} 39.
Kb2 {[%clk 0:01:57.4]} 39... Qxh3 {[%clk 0:01:54.3]} 40. Qf2 {[%clk 0:01:55.9]}
40... Qh1 {[%clk 0:01:43.4]} 41. Qf5+ {[%clk 0:01:55.4]} 41... Kh6 {[%clk
0:01:44.2]} 42. Qf6+ {[%clk 0:01:54.8]} 42... Kh7 {[%clk 0:01:45.3]} 43. Qf7+
{[%clk 0:01:54.1]} 43... Kh6 {[%clk 0:01:42.9]} 44. Qf6+ {[%clk 0:01:51.1]}
44... Kh7 {[%clk 0:01:43.6]} 45. Qf7+ {[%clk 0:01:51.9]} 45... Kh6 {[%clk
0:01:44.4]} 46. Qf6+ {[%clk 0:01:53]} 46... Kh7 {[%clk 0:01:45.4]} 47. Qf7+
{[%clk 0:01:54.3]} 47... Kh6 {[%clk 0:01:46.3]} 48. Qf6+ {[%clk 0:01:55.5]}
48... Kh7 {[%clk 0:01:47.4]} 49. Qf7+ {[%clk 0:01:56.9]} 49... Kh6 {[%clk
0:01:47.7]} 50. Qf6+ {[%clk 0:01:58]} 1/2-1/2

[Event "*** Titled Tuesday Blitz"]
[Site "Chess.com"]
[Date "2019.01.01"]
[Round "10"]
[White "Korchmar_Vasiliy"]
[Black "Supernotar"]
[Result "1-0"]
[WhiteElo "2797"]
[BlackElo "2461"]
[TimeControl "180+2"]
[EndTime "15:19:34 PST"]
[Termination "Korchmar_Vasiliy won by checkmate"]

1. d4 {[%clk 0:03:01.6]} 1... d5 {[%clk 0:03:00.6]} 2. c4 {[%clk 0:03:02.7]}
2... dxc4 {[%clk 0:03:01.9]} 3. e3 {[%clk 0:03:03.5]} 3... Nf6 {[%clk
0:03:03.1]} 4. Bxc4 {[%clk 0:03:03.9]} 4... e6 {[%clk 0:03:04.5]} 5. Nf3 {[%clk
0:03:03.7]} 5... a6 {[%clk 0:03:05.8]} 6. O-O {[%clk 0:03:03.3]} 6... b5 {[%clk
0:03:07]} 7. Bd3 {[%clk 0:03:02.8]} 7... Bb7 {[%clk 0:03:08.1]} 8. a4 {[%clk
0:02:56.9]} 8... b4 {[%clk 0:03:08.8]} 9. Nbd2 {[%clk 0:02:57.5]} 9... Nbd7
{[%clk 0:03:09.4]} 10. e4 {[%clk 0:02:55.1]} 10... Be7 {[%clk 0:03:09.7]} 11. e5
{[%clk 0:02:52.2]} 11... Nd5 {[%clk 0:03:10.8]} 12. Ne4 {[%clk 0:02:53.9]} 12...
c5 {[%clk 0:03:09.4]} 13. Bg5 {[%clk 0:02:43.1]} 13... cxd4 {[%clk 0:03:05.8]}
14. Nd6+ {[%clk 0:02:39.1]} 14... Kf8 {[%clk 0:03:06.3]} 15. Nxb7 {[%clk
0:02:40.3]} 15... Qc7 {[%clk 0:03:04.6]} 16. Bxe7+ {[%clk 0:02:41.5]} 16... Kxe7
{[%clk 0:03:05.2]} 17. Nd6 {[%clk 0:02:43.1]} 17... Nxe5 {[%clk 0:03:06.2]} 18.
Nxe5 {[%clk 0:02:34.9]} 18... Qxd6 {[%clk 0:03:07.3]} 19. Re1 {[%clk 0:02:34.1]}
19... f6 {[%clk 0:03:03.1]} 20. Nf3 {[%clk 0:02:31.3]} 20... Nf4 {[%clk
0:03:01.5]} 21. Bf1 {[%clk 0:02:28]} 21... Rhd8 {[%clk 0:02:57]} 22. Rc1 {[%clk
0:02:22.3]} 22... Kf8 {[%clk 0:02:51.2]} 23. g3 {[%clk 0:02:19.3]} 23... Ng6
{[%clk 0:02:49.3]} 24. h4 {[%clk 0:02:20.1]} 24... e5 {[%clk 0:02:42.6]} 25. Bd3
{[%clk 0:02:15.9]} 25... Kg8 {[%clk 0:02:38.6]} 26. Bxg6 {[%clk 0:02:11.2]}
26... hxg6 {[%clk 0:02:39.4]} 27. Qd3 {[%clk 0:02:12.8]} 27... Kf7 {[%clk
0:02:37.2]} 28. Rc4 {[%clk 0:02:04.6]} 28... Rd7 {[%clk 0:02:14.9]} 29. Rec1
{[%clk 0:02:01.9]} 29... Rad8 {[%clk 0:02:15.1]} 30. Rc6 {[%clk 0:01:58.3]}
30... Qd5 {[%clk 0:02:16]} 31. Nd2 {[%clk 0:01:56.8]} 31... f5 {[%clk
0:02:13.5]} 32. Qxa6 {[%clk 0:01:49.4]} 32... e4 {[%clk 0:02:11.4]} 33. R6c5
{[%clk 0:01:35.8]} 33... Qa2 {[%clk 0:02:07.2]} 34. Nc4 {[%clk 0:01:33.9]} 34...
Re7 {[%clk 0:01:50.2]} 35. Ne5+ {[%clk 0:01:29.6]} 35... Kg8 {[%clk 0:01:49.8]}
36. Qxg6 {[%clk 0:01:30.2]} 36... Qxb2 {[%clk 0:01:47]} 37. Nc6 {[%clk
0:01:28.9]} 37... Ree8 {[%clk 0:01:40.9]} 38. Nxd8 {[%clk 0:01:29.7]} 38... e3
{[%clk 0:01:42.3]} 39. Qxe8+ {[%clk 0:01:28.9]} 39... Kh7 {[%clk 0:01:42.9]} 40.
Qh5+ {[%clk 0:01:27]} 40... Kg8 {[%clk 0:01:43.8]} 41. Qf7+ {[%clk 0:01:28.3]}
41... Kh8 {[%clk 0:01:42.2]} 42. Qf8+ {[%clk 0:01:29.5]} 42... Kh7 {[%clk
0:01:43.4]} 43. Qxf5+ {[%clk 0:01:31.4]} 43... g6 {[%clk 0:01:44.5]} 44. Qf7+
{[%clk 0:01:31.1]} 44... Kh6 {[%clk 0:01:45.3]} 45. Qf4+ {[%clk 0:01:26.5]}
45... Kh7 {[%clk 0:01:44.6]} 46. Rc7+ {[%clk 0:01:27.7]} 46... Kg8 {[%clk
0:01:46.1]} 47. Qf7+ {[%clk 0:01:28.7]} 47... Kh8 {[%clk 0:01:47.6]} 48. Qh7#
{[%clk 0:01:30.6]} 1-0